{"text_format":"1","workbook":"xlsx","n_sheets":8,"sheets":["Титульный","Факт","Форма 1.1.","Форма 1.2.","Форма 1.9.","Форма 8.1.","Форма 8.3.","TEHSHEET"],"not_rendered":{"charts":0,"images":0,"macros":1,"external_links":0,"defined_names":1,"comments":1,"pivot_tables":0},"unopened":[],"bounds":{"document_bytes":16777216,"sheet_cells":100000,"rows_first":2000,"rows_last":500,"rows_between":2000,"halvings":0,"cell_chars":16384,"cell_head_chars":4096},"cells_cut":0,"cells_raw":0,"read":"whole","date_system":"1900"}

{"sheet":"Титульный","index":0,"n_rows":16,"n_cols":6,"rows_kept":16,"cut":false,"hidden":false,"merged":[[3,4,3,5]]}
[]
[null,null,null,null,null,"Версия 2.0"]
[]
[null,null,null,null,"Расчет фактических значений показателей надежности и качества "]
[]
[null,null,null,null,"Субъект РФ","Тюменская область"]
[]
[null,null,null,null,"Период регулирования","2019"]
[]
[null,null,null,null,"Наименование  организации","ООО \"Агентство Интеллект-Сервис\""]
[]
[null,null,null,null,null,"Должностное лицо, ответственное за составление формы"]
[null,null,null,null,"Фамилия, имя, отчество","Ибрагимов Дамир Мирсатович"]
[null,null,null,null,"Должность","Заместитель главного инженера"]
[null,null,null,null,"Контактный телефон","8(34-52) 56-86-58 доб.112"]
[null,null,null,null,"e-mail","ibragimov-dm@aistmn.ru"]

{"sheet":"Факт","index":1,"n_rows":154,"n_cols":15,"rows_kept":154,"cut":false,"hidden":false,"merged":[[119,2,119,3],[118,2,118,3],[153,1,153,6],[129,3,129,4],[4,1,5,1],[12,1,13,1],[100,1,101,1],[123,2,123,3],[117,1,117,3],[120,1,120,3],[125,2,125,3],[4,3,4,4],[121,2,121,3],[122,2,122,3],[114,3,116,3],[12,2,13,2],[21,9,21,14],[23,9,23,14],[21,8,22,8],[21,2,22,2],[21,7,22,7],[12,3,12,4],[100,3,100,4],[4,2,5,2],[100,2,101,2],[100,8,101,8],[21,1,22,1],[21,3,21,4],[21,5,22,5],[21,6,22,6],[100,7,101,7],[100,6,101,6],[100,5,101,5]]}
[]
[]
[]
[null,"I - Расчет показателя уровня надежности оказываемых услуг"]
[null,"Показатель","Ед.изм.","Значение"]
[null,null,null,"плановое","фактическое"]
[null,1,2,3,4]
[null,"Суммарная продолжительность прекращений передачи электроэнергии","час",100,102.03]
[null,"Максимальное за расчетный период число точек присоединения","шт",536,723]
[null,"Показатель надежности услуг","-",{"$f":"IF(D9=0,0,D8/D9)","v":0.18656716417910449},{"$f":"IF(E9=0,0,E8/E9)","v":0.14112033195020748}]
[]
[null,"II - Расчет показателя качества ФСК"]
[null,"Показатель","Ед.изм.","Значение"]
[null,null,null,"плановое","фактическое"]
[null,1,null,2,3]
[null,"Число заявок на ТП, поданных потребителем в соответствии с законодательством","шт",10,10]
[null,"Число направленных договоров","шт",10,10]
[null,"Число договоров, направленных с нарушением срока","шт",0,0]
[null,"Показатель качества услуг ФСК","-",{"$f":"D16/(MAX(1,D17-D18))","v":1},{"$f":"E16/(MAX(1,E17-E18))","v":1}]
[]
[null,"III - Расчет показателя уровня качества обслуживания потребителей услуг  ТСО"]
[null,"Показатель","Ед.изм.","Значение",null,"Отклонение факта от плана","Зависимость","Оценка при планировании","Оценка по факту","СПРАВОЧНО"]
[null,null,null,"плановое","фактическое",null,null,null,null,"min","выставляется при","med","выставляется при","max","выставляется при"]
[null,1,{"$f":"B24+1","v":2},{"$f":"C24+1","v":3},4,5,6,7,8,{"$f":"I24+1","v":9}]
[null,"Индикатор информативности"]
[null,"1. Возможность личного приема заявителей и потребителей услуг уполномоченными должностными лицами территориальной сетевой организации","-","-","-","-","-",{"$f":"AVERAGE(H27:H28)","v":2},{"$f":"AVERAGE(I27:I28)","v":2},"-","-","-","-","-","-"]
[null,"1.1. Количество структурных подразделений по работе с заявителями и потребителями услуг в процентном отношении к общему количеству структурных подразделений","%",0.3,0.3,{"$f":"IF(E27=\"-\",\"-\",IF(D27=E27,1,IF(D27=0,120%,E27/D27)))","v":1},"прямая",{"$f":"L27","v":2},{"$f":"IF(F27=\"-\",\"-\",IF(G27=\"прямая\",IF(F27>120%,J27,IF(F27<80%,N27,L27)),IF(F27<80%,J27,IF(F27>120%,N27,L27))))","v":2},1,{"$f":"IF($G27=\"прямая\",\"гр.4>120%\",IF($G27=\"обратная\",\"гр.4<80%\",\"???\"))","v":"гр.4>120%"},2,"80%<гр.4<120%",3,{"$f":"IF($G27=\"прямая\",\"гр.4<80%\",IF($G27=\"обратная\",\"гр.4>120%\",\"???\"))","v":"гр.4<80%"}]
[null,"1.2. Количество утвержденных территориальной сетевой организацией в установленном порядке организационно-распорядительных документов по вопросам работы с заявителями и потребителями услуг","шт",{"$f":"SUM(D29:D32)","v":9},{"$f":"SUM(E29:E32)","v":9},1,"прямая",2,2,1,"гр.4>120%",2,"80%<гр.4<120%",3,"гр.4<80%"]
[null,"а) регламенты оказания услуг и рассмотрения обращений заявителей и потребителей услуг","шт",1,1,"-","-","-","-","-","-","-","-","-","-"]
[null,"б) наличие положения о деятельности структурного подразделения по работе с заявителями и потребителями услуг (наличие -1, отсутствие - 0)","шт (1/0)",1,1,"-","-","-","-","-","-","-","-","-","-"]
[null,"в) должностные инструкции сотрудников, обслуживающих заявителей и потребителей услуг","шт",3,3,"-","-","-","-","-","-","-","-","-","-"]
[null,"г) утвержденные территориальной сетевой организацией в установленном порядке формы отчетности о работе с заявителями и потребителями услуг","шт",4,4,"-","-","-","-","-","-","-","-","-","-"]
[null,"2. Наличие телефонной связи для обращений потребителей услуг к уполномоченным должностным лицам территориальной сетевой организации,","-","-","-","-","-",{"$f":"AVERAGE(H34:H36)","v":2},{"$f":"AVERAGE(I34:I36)","v":2},"-","-","-","-","-","-"]
[null,"2.1. Наличие единого телефонного номера для приема обращений потребителей услуг","(1/0)",1,1,{"$f":"IF(E34=\"-\",\"-\",IF(D34=E34,1,IF(D34=0,120%,E34/D34)))","v":1},"прямая",{"$f":"L34","v":2},{"$f":"IF(F34=\"-\",\"-\",IF(G34=\"прямая\",IF(F34>120%,J34,IF(F34<80%,N34,L34)),IF(F34<80%,J34,IF(F34>120%,N34,L34))))","v":2},1,{"$f":"IF($G34=\"прямая\",\"гр.4>120%\",IF($G34=\"обратная\",\"гр.4<80%\",\"???\"))","v":"гр.4>120%"},2,"80%<гр.4<120%",3,{"$f":"IF($G34=\"прямая\",\"гр.4<80%\",IF($G34=\"обратная\",\"гр.4>120%\",\"???\"))","v":"гр.4<80%"}]
[null,"2.2. Наличие информационно-справочной системы для автоматизации обработки обращений потребителей услуг, поступивших по телефону","(1/0)",0,0,1,"прямая",2,2,1,"гр.4>120%",2,"80%<гр.4<120%",3,"гр.4<80%"]
[null,"2.3. Наличие системы автоинформирования потребителей услуг по телефону, предназначенной для доведения до них типовой информации","(1/0)",0,0,1,"прямая",2,2,1,"гр.4>120%",2,"80%<гр.4<120%",3,"гр.4<80%"]
[null,"3. Наличие в сети Интернет сайта территориальной сетевой организации с возможностью обмена информацией с потребителями услуг посредством электронной почты","(1/0)",1,1,1,"прямая",2,2,1,"гр.4>120%",2,"80%<гр.4<120%",3,"гр.4<80%"]
[null,"4. Проведение мероприятий по доведению до сведения потребителей услуг необходимой информации, в том числе путем ее размещения в сети Интернет, на бумажных носителях или иными доступными способами","(1/0)",1,1,1,"прямая",2,2,1,"гр.4>120%",2,"80%<гр.4<120%",3,"гр.4<80%"]
[null,"5. Простота и доступность схемы обжалования потребителями услуг действий должностных лиц территориальной сетевой организации, по критерию","%",{"$f":"D40","v":0},{"$f":"E40","v":0},1,"обратная",2,2,1,"гр.4<80%",2,"80%<гр.4<120%",3,"гр.4>120%"]
[null,"5.1. Общее количество обращений потребителей услуг о проведении консультаций по порядку обжалования действий (бездействия) территориальной сетевой организации в ходе исполнения своих функций в процентах от общего количества поступивших обращений","%",0,0,"-","-","-","-","-","-","-","-","-","-"]
[null,"6. Степень полноты, актуальности и достоверности предоставляемой потребителям услуг информации о деятельности территориальной сетевой организации - всего,","-","-","-","-","-",{"$f":"AVERAGE(H42:H43)","v":2},{"$f":"AVERAGE(I42:I43)","v":2},"-","-","-","-","-","-"]
[null,"6.1. Общее количество обращений потребителей услуг о проведении консультаций по вопросам деятельности территориальной сетевой организации в процентах от общего количества поступивших обращений","%",0,0,{"$f":"IF(E42=\"-\",\"-\",IF(D42=E42,1,IF(D42=0,120%,E42/D42)))","v":1},"обратная",{"$f":"L42","v":2},{"$f":"IF(F42=\"-\",\"-\",IF(G42=\"прямая\",IF(F42>120%,J42,IF(F42<80%,N42,L42)),IF(F42<80%,J42,IF(F42>120%,N42,L42))))","v":2},1,{"$f":"IF($G42=\"прямая\",\"гр.4>120%\",IF($G42=\"обратная\",\"гр.4<80%\",\"???\"))","v":"гр.4<80%"},2,"80%<гр.4<120%",3,{"$f":"IF($G42=\"прямая\",\"гр.4<80%\",IF($G42=\"обратная\",\"гр.4>120%\",\"???\"))","v":"гр.4>120%"}]
[null,"6.2. Количество обращений потребителей услуг с указанием на отсутствие необходимой информации, которая должна быть раскрыта территориальной сетевой организацией в соответствии с нормативными правовыми актами, в процентах от общего количества поступивших обращений","%",0,0,1,"обратная",2,2,1,{"$f":"IF($G43=\"прямая\",\"гр.4>120%\",IF($G43=\"обратная\",\"гр.4<80%\",\"???\"))","v":"гр.4<80%"},2,"80%<гр.4<120%",3,{"$f":"IF($G43=\"прямая\",\"гр.4<80%\",IF($G43=\"обратная\",\"гр.4>120%\",\"???\"))","v":"гр.4>120%"}]
[null,"7. Итого по индикатору информативности","-","-","-","-","-",{"$f":"AVERAGE(H26,H33,H37,H38,H39,H41)","v":2},{"$f":"AVERAGE(I26,I33,I37,I38,I39,I41)","v":2},"-","-","-","-","-","-"]
[null,"Индикатор исполнительности"]
[null,"1. Соблюдение сроков по процедурам взаимодействия с потребителями услуг (заявителями)","-","-","-","-","-",{"$f":"IFERROR(AVERAGE(H47:H48,H51),\"-\")","v":0.5},{"$f":"IFERROR(AVERAGE(I47:I48,I51),\"-\")","v":0.5},"-","-","-","-","-","-"]
[null,"1.1. Среднее время, затраченное территориальной сетевой организацией на направление проекта договора оказания услуг по передаче электрической энергии потребителю услуг (заявителю)","дней",25,25,{"$f":"IF(E47=\"-\",\"-\",IF(D47=E47,1,IF(D47=0,120%,E47/D47)))","v":1},"обратная",{"$f":"L47","v":0.5},{"$f":"IF(F47=\"-\",\"-\",IF(G47=\"прямая\",IF(F47>120%,J47,IF(F47<80%,N47,L47)),IF(F47<80%,J47,IF(F47>120%,N47,L47))))","v":0.5},0.25,{"$f":"IF($G47=\"прямая\",\"гр.4>120%\",IF($G47=\"обратная\",\"гр.4<80%\",\"???\"))","v":"гр.4<80%"},0.5,"80%<гр.4<120%",0.75,{"$f":"IF($G47=\"прямая\",\"гр.4<80%\",IF($G47=\"обратная\",\"гр.4>120%\",\"???\"))","v":"гр.4>120%"}]
[null,"1.2. Среднее время, необходимое для оборудования точки поставки приборами учета с момента подачи заявления потребителем услуг:","-","-","-","-","-",{"$f":"IFERROR(AVERAGE(H49:H50),\"-\")","v":0.5},{"$f":"IFERROR(AVERAGE(I49:I50),\"-\")","v":0.5},"-","-","-","-","-","-"]
[null,"а) для физических лиц, включая индивидуальных предпринимателей, и юридических лиц - субъектов малого и среднего предпринимательства","дней",10,10,{"$f":"IF(E49=\"-\",\"-\",IF(D49=E49,1,IF(D49=0,120%,E49/D49)))","v":1},"обратная",{"$f":"L49","v":0.5},{"$f":"IF(F49=\"-\",\"-\",IF(G49=\"прямая\",IF(F49>120%,J49,IF(F49<80%,N49,L49)),IF(F49<80%,J49,IF(F49>120%,N49,L49))))","v":0.5},0.25,"гр.4<80%",0.5,"80%<гр.4<120%",0.75,"гр.4>120%"]
[null,"б) для остальных потребителей услуг","дней",null,null,1,"обратная",0.5,0.5,0.25,"гр.4<80%",0.5,"80%<гр.4<120%",0.75,"гр.4>120%"]
[null,"1.3. Количество случаев отказа от заключения и случаев расторжения потребителем услуг договоров оказания услуг по передаче электрической энергии в процентах от общего количества заключенных территориальной сетевой организацией договоров с потребителями услуг (заявителями), кроме физических лиц","%",0.1,0.1,1,"обратная",0.5,0.5,0.25,"гр.4<80%",0.5,"80%<гр.4<120%",0.75,"гр.4>120%"]
[null,"2. Соблюдение требований нормативных правовых актов Российской Федерации по поддержанию качества электрической энергии, по критерию","-",{"$f":"D53","v":0},{"$f":"E53","v":0},1,"обратная",0.5,0.5,0.25,"гр.4<80%",0.5,"80%<гр.4<120%",0.75,"гр.4>120%"]
[null,"2.1. Количество обращений потребителей услуг с указанием на ненадлежащее качество электрической энергии, в процентах от общего количества поступивших обращений","%",0,0,"-","-","-","-","-","-","-","-","-","-"]
[null,"3. Наличие взаимодействия с потребителями услуг при выводе оборудования в ремонт и (или) из эксплуатации","-","-","-","-","-",{"$f":"AVERAGE(H55,H56)","v":0.5},{"$f":"AVERAGE(I55,I56)","v":0.5},"-","-","-","-","-","-"]
[null,"3.1. Наличие (отсутствие) установленной процедуры, согласования с потребителями услуг графиков вывода электросетевого оборудования в ремонт и (или) из эксплуатации","(1/0)",1,1,{"$f":"IF(E55=\"-\",\"-\",IF(D55=E55,1,IF(D55=0,120%,E55/D55)))","v":1},"прямая",{"$f":"L55","v":0.5},{"$f":"IF(F55=\"-\",\"-\",IF(G55=\"прямая\",IF(F55>120%,J55,IF(F55<80%,N55,L55)),IF(F55<80%,J55,IF(F55>120%,N55,L55))))","v":0.5},0.25,"гр.4>120%",0.5,"80%<гр.4<120%",0.75,"гр.4<80%"]
[null,"3.2. Количество обращений потребителей услуг с указанием на несогласие введения предлагаемых территориальной сетевой организацией графиков вывода электросетевого оборудования в ремонт и (или) из эксплуатации, в процентах от общего количества поступивших обращений, кроме физических лиц","%",0,0,1,"обратная",0.5,0.5,0.25,"гр.4<80%",0.5,"80%<гр.4<120%",0.75,"гр.4>120%"]
[null,"4. Соблюдение требований нормативных правовых актов по защите персональных данных потребителей услуг (заявителей), по критерию","%",{"$f":"D58","v":0},{"$f":"E58","v":0},1,"обратная",0.2,0.2,0.1,"гр.4<80%",0.2,"80%<гр.4<120%",0.3,"гр.4>120%"]
[null,"4.1 Количество обращений потребителей услуг (заявителей) с указанием на неправомерность использования персональных данных потребителей услуг (заявителей), в процентах от общего количества поступивших обращений","%",0,0,"-","-","-","-","-","-","-","-","-","-"]
[null,"5. Итого по индикатору исполнительности","-","-","-","-","-",{"$f":"AVERAGE(H46,H52,H54,H57)","v":0.42499999999999999},{"$f":"AVERAGE(I46,I52,I54,I57)","v":0.42499999999999999},"-","-","-","-","-","-"]
[null,"Индикатор результативности обратной связи",null,null,null,null,null,null,null,"-","-","-","-","-","-"]
[null,"1. Наличие структурного подразделения территориальной сетевой организации по рассмотрению, обработке и принятию мер по обращениям потребителей услуг","(1/0)",1,1,{"$f":"IF(E61=\"-\",\"-\",IF(D61=E61,1,IF(D61=0,120%,E61/D61)))","v":1},"прямая",{"$f":"L61","v":2},{"$f":"IF(F61=\"-\",\"-\",IF(G61=\"прямая\",IF(F61>120%,J61,IF(F61<80%,N61,L61)),IF(F61<80%,J61,IF(F61>120%,N61,L61))))","v":2},1,"гр.4>120%",2,"80%<гр.4<120%",3,"гр.4<80%"]
[null,"2. Степень удовлетворения обращений потребителей услуг","-","-","-","-","-",{"$f":"AVERAGE(H63:H68)","v":2},{"$f":"AVERAGE(I63:I68)","v":2},"-","-","-","-","-","-"]
[null,"2.1. Общее количество обращений потребителей услуг с указанием на ненадлежащее качество услуг по передаче электрической энергии и обслуживание, в процентах от общего количества поступивших обращений","%",0,0,{"$f":"IF(E63=\"-\",\"-\",IF(D63=E63,1,IF(D63=0,120%,E63/D63)))","v":1},"обратная",{"$f":"L63","v":2},{"$f":"IF(F63=\"-\",\"-\",IF(G63=\"прямая\",IF(F63>120%,J63,IF(F63<80%,N63,L63)),IF(F63<80%,J63,IF(F63>120%,N63,L63))))","v":2},1,"гр.4<80%",2,"80%<гр.4<120%",3,"гр.4>120%"]
[null,"2.2. Количество принятых мер по результатам рассмотрения обращений потребителей услуг с указанием на ненадлежащее качество услуг по передаче электрической энергии и обслуживание, в процентах от общего количества поступивших обращений","%",0,0,{"$f":"IF(E64=\"-\",\"-\",IF(D64=E64,1,IF(D64=0,120%,E64/D64)))","v":1},"прямая",2,2,1,"гр.4>120%",2,"80%<гр.4<120%",3,"гр.4<80%"]
[null,"2.3. Количество обращений, связанных с неудовлетворенностью принятыми мерами, указанными в п. 2.2 настоящей формы, поступивших от потребителей услуг в течение 30 рабочих дней после завершения мероприятий, указанных в в п. 2.2 настоящей формы, в процентах от общего количества поступивших обращений","%",0,0,1,"обратная",2,2,1,"гр.4<80%",2,"80%<гр.4<120%",3,"гр.4>120%"]
[null,"2.4. Количество обращений потребителей услуг с указанием на ненадлежащее качество услуг, оказываемых территориальной сетевой организацией, поступивших в соответствующий контролирующий орган исполнительной власти, в процентах от общего количества поступивших обращений","%",0,0,1,"обратная",2,2,1,"гр.4<80%",2,"80%<гр.4<120%",3,"гр.4>120%"]
[null,"2.5. Количество отзывов и предложений по вопросам деятельности территориальной сетевой организации, поступивших через обратную связь, в процентах от общего количества поступивших обращений","%",0,0,1,"прямая",2,2,1,"гр.4>120%",2,"80%<гр.4<120%",3,"гр.4<80%"]
[null,"2.6. Количество реализованных изменений в деятельности организации, направленных на повышение качества обслуживания потребителей услуг","шт",1,1,1,"прямая",2,2,1,"гр.4>120%",2,"80%<гр.4<120%",3,"гр.4<80%"]
[null,"3. Оперативность реагирования на обращения потребителей услуг - всего,","-","-","-","-","-",{"$f":"AVERAGE(H70:H71)","v":2},{"$f":"AVERAGE(I70:I71)","v":2},"-","-","-","-","-","-"]
[null,"3.1. Средняя продолжительность времени принятия мер по результатам обращения потребителя услуг","дней",1,1,{"$f":"IF(E70=\"-\",\"-\",IF(D70=E70,1,IF(D70=0,120%,E70/D70)))","v":1},"обратная",{"$f":"L70","v":2},{"$f":"IF(F70=\"-\",\"-\",IF(G70=\"прямая\",IF(F70>120%,J70,IF(F70<80%,N70,L70)),IF(F70<80%,J70,IF(F70>120%,N70,L70))))","v":2},1,"гр.4<80%",2,"80%<гр.4<120%",3,"гр.4>120%"]
[null,"3.2. Взаимодействие территориальной сетевой организации с потребителями услуг с целью получения информации о качестве обслуживания, реализованное посредством:","-","-","-","-","-",{"$f":"AVERAGE(H72:H74)","v":2},{"$f":"AVERAGE(I72:I74)","v":2},"-","-","-","-","-","-"]
[null,"а) письменных опросов","шт/ 1000 потр",0,0,{"$f":"IF(E72=\"-\",\"-\",IF(D72=E72,1,IF(D72=0,120%,E72/D72)))","v":1},"прямая",{"$f":"L72","v":2},{"$f":"IF(F72=\"-\",\"-\",IF(G72=\"прямая\",IF(F72>120%,J72,IF(F72<80%,N72,L72)),IF(F72<80%,J72,IF(F72>120%,N72,L72))))","v":2},1,"гр.4>120%",2,"80%<гр.4<120%",3,"гр.4<80%"]
[null,"б) электронной связи через сеть Интернет","шт/ 1000 потр",0,0,1,"прямая",2,2,1,"гр.4>120%",2,"80%<гр.4<120%",3,"гр.4<80%"]
[null,"в) системы автоинформирования","шт/ 1000 потр",0,0,1,"прямая",2,2,1,"гр.4>120%",2,"80%<гр.4<120%",3,"гр.4<80%"]
[null,"4. Индивидуальность подхода к потребителям услуг льготных категорий, по критерию","шт/ 1000 потр",{"$f":"D76","v":0},{"$f":"E76","v":0},1,"обратная",2,2,1,"гр.4<80%",2,"80%<гр.4<120%",3,"гр.4>120%"]
[null,"4.1. Количество обращений потребителей услуг льготных категорий с указанием на неудовлетворительность качества их обслуживания, шт. на 1000 потребителей услуг","шт/ 1000 потр",0,0,"-","-","-","-","-","-","-","-","-","-"]
[null,"5. Оперативность возмещения убытков потребителям услуг при несоблюдении территориальной сетевой организацией обязательств, предусмотренных нормативными правовыми актами и договорами","-","-","-","-","-",{"$f":"AVERAGE(H78:H79)","v":2},{"$f":"IFERROR(AVERAGE(I78:I79),\"-\")","v":2},"-","-","-","-","-","-"]
[null,"5.1. Средняя продолжительность времени на принятие территориальной сетевой организацией мер по возмещению потребителю услуг убытков","мес.",0,0,{"$f":"IF(E78=\"-\",\"-\",IF(D78=E78,1,IF(D78=0,120%,E78/D78)))","v":1},"обратная",{"$f":"L78","v":2},{"$f":"IF(F78=\"-\",\"-\",IF(G78=\"прямая\",IF(F78>120%,J78,IF(F78<80%,N78,L78)),IF(F78<80%,J78,IF(F78>120%,N78,L78))))","v":2},1,"гр.4<80%",2,"80%<гр.4<120%",3,"гр.4>120%"]
[null,"5.2. Доля потребителей услуг, получивших возмещение убытков, возникших в результате неисполнения (ненадлежащего исполнения) территориальной сетевой организацией своих обязательств, от числа потребителей, в пользу которых было вынесено судебное решение, или возмещение было произведено во внесудебном порядке","%",0,0,1,"прямая",2,2,1,"гр.4>120%",2,"80%<гр.4<120%",3,"гр.4<80%"]
[null,"6. Итого по индикатору результативность обратной связи","-","-","-","-","-",{"$f":"AVERAGE(H61,H62,H69,H75,H77)","v":2},{"$f":"AVERAGE(I61,I62,I69,I75,I77)","v":2},"-","-","-","-","-","-"]
[null,"Показатель уровня качества обслуживания потребителей услуг ТСО",null,null,null,null,null,{"$f":"0.1*H44+0.7*H59+0.2*H80","v":0.89749999999999996},{"$f":"0.1*I44+0.7*I59+0.2*I80","v":0.89749999999999996}]
[]
[null,"IV - Расчет показателя уровня качества осуществляемого технологического присоединения к сети"]
[null,"Показатель","плановое значение","фактическое значение"]
[null,"1. Показатель качства рассмотрения заявок на техлологическое присоединение к сети","Число, шт.","Число, шт."]
[null,"1.1.Число заявок на технологическое присоединение к сети, поданных в соответствии с требованиями нормативных правовых актов, по которым сетевой организацией в соответствующий расчетный период направлен проек договра об осуществлении технологического присоединения заявителя к сети, шт. (Nзаяв_тпр)",10,10]
[null,"1.2.Число заявок на технологическое присоединение к сети, поданных в соответствии с требованиями нормативных правовых актов, по которым сетевой организацией в соответствующий расчетный период направлен проек договра об осуществлении технологического присоединения к сети с нарушением установленных сроков его направления, шт.                                                                                                                                                                                                                                                                                              нс                                                                                                                                                                                                                                                                                                                                                                                (N заяв_тпр)",10,10]
[null,"2. Итого показатель качества рассмотрения заявок на технологическое присоединение к сети     (П заяв_тпр)",{"$f":"C86/MAX(1,(C86-C87))","v":10},{"$f":"D86/MAX(1,(D86-D87))","v":10}]
[null,"3. Показатель качства рассмотрения заявок на техлологическое присоединение к сети"]
[null,"3.1.Число договорв об осуществлении  технологического присоединения заявителей к сети, исполненных в соответствующем расчетном периоде, по которым имеется подписанный сторонами акт о технологическом присоединении, шт. (Nсд_тпр)",10,10]
[null,"3.2.Число договорв об осуществлении  технологического присоединения заявителей к сети, исполненных в соответствующем расчетном периоде, по которым имеется подписанный сторонами акт о технологическом присоединении, по которым произошло нарушение установленных сроков технологического присоединения, шт.                                                                          11               нс                                                                                                                                                                                                                                                                                                                                                                                (N сд_тпр)",0,0]
[null,"4. Итого показатель качества исполнения договоров об осуществлении технологического присоединение заявителей к  сети (П нс_тпр)",{"$f":"C90/MAX(1,(C90-C91))","v":1},{"$f":"D90/MAX(1,(D90-D91))","v":1}]
[null,"5. Показатель качства рассмотрения заявок на техлологическое присоединение к сети"]
[null,"5.1Число вступивших в законную силу решений антимонопольного  законодательства и (или) суда об установлении нарушений сетевой организацией требований антимонопольного законодательства РФ в части оказания услуг по технологическому присоединению в соответствующем расчетном периоде, шт. (Nн_тпр)",0,0]
[null,"5.2.Общее число заявок на технологическое присоединение к сети, поданных заявителями в соответствующий расчетнгый период, в десятках шт. без округления (Nочз_тпр) ",10,10]
[null,"6.Показатель соблюдения антимонопольного законодательства при  технологическом присоединении к электрическим сетям сетевой организации  (П нпа_тпр)",{"$f":"C95/MAX(1,(C95-C94))","v":1},{"$f":"D95/MAX(1,(D95-D94))","v":1}]
[null,"Показатель уровня качества оказываемых услуг ТСО",{"$f":"IF((C88*0.4+C92*0.4+C96*0.2)=0,0,IF((C88*0.4+C92*0.4+C96*0.2)<1,1,(C88*0.4+C92*0.4+C96*0.2)))","v":4.6000000000000005},{"$f":"IF((D88*0.4+D92*0.4+D96*0.2)=0,0,IF((D88*0.4+D92*0.4+D96*0.2)<1,1,(D88*0.4+D92*0.4+D96*0.2)))","v":4.6000000000000005}]
[null,null,{"$f":"C88*0.4+C92*0.4+C96*0.2","v":4.6000000000000005},{"$f":"D88*0.4+D92*0.4+D96*0.2","v":4.6000000000000005}]
[]
[null,"IV - СВОД ПО ПОКАЗАТЕЛЯМ НАДЕЖНОСТИ И КАЧЕСТВА И РАСЧЕТ ОБОБЩЕННОГО ПОКАЗАТЕЛЯ"]
[null,"Показатель","Ед.изм.","Значение показателей надежности и качества",null,"Коэффициент допустимого отклонения показателя надежности и качества","Отметка о достижении показателя надежности и качества","Отметка о  достоверности отчетных данных","Определение коэффициентов надежности и качества"]
[null,null,null,"плановое","фактическое"]
[null,"Показатель надежности услуг","-",{"$f":"D10","v":0.18656716417910449},{"$f":"E10","v":0.14112033195020748},{"$f":"IF(C126=TEHSHEET!E5,C119,IF(C126=TEHSHEET!E6,C120,IF(C126=TEHSHEET!E7,C122,C123)))","v":0.3},{"$f":"IF(AND(E103=0,D103=0),\"достигнуто\",IF(E103<=D103*(1-F103),\"достигнуто с улучшением\",IF(E103<=D103*(1+F103),\"достигнуто\",\"не достигнуто\")))","v":"достигнуто"},"+",{"$f":"IF(H103=\"-\",-1,IF(G103=\"достигнуто\",0,IF(G103=\"не достигнуто\",-1,1)))","v":0}]
[null,"Показатель качества услуг ФСК","-",{"$f":"D19","v":1},{"$f":"E19","v":1},{"$f":"D115","v":0.15},{"$f":"IF(AND(E104=0,D104=0),\"достигнуто\",IF(E104<=D104*(1-F104),\"достигнуто с улучшением\",IF(E104<=D104*(1+F104),\"достигнуто\",\"не достигнуто\")))","v":"достигнуто"},"+",{"$f":"IF(H104=\"-\",-1,IF(G104=\"достигнуто\",0,IF(G104=\"не достигнуто\",-1,1)))","v":0}]
[null,"Показатель уровня качества обслуживания потребителей услуг ТСО","-",{"$f":"H81","v":0.89749999999999996},{"$f":"I81","v":0.89749999999999996},{"$f":"$F$103","v":0.3},{"$f":"IF(AND(E105=0,D105=0),\"достигнуто\",IF(E105<=D105*(1-F105),\"достигнуто с улучшением\",IF(E105<=D105*(1+F105),\"достигнуто\",\"не достигнуто\")))","v":"достигнуто"},"+",{"$f":"IF(H105=\"-\",-1,IF(G105=\"достигнуто\",0,IF(G105=\"не достигнуто\",-1,1)))","v":0}]
[null,"Показатель уровня качества осуществляемого технологического присоединения к сети","-",{"$f":"C97","v":4.6000000000000005},{"$f":"D97","v":4.6000000000000005},{"$f":"$F$103","v":0.3},{"$f":"IF(AND(E106=0,D106=0),\"достигнуто\",IF(E106<=D106*(1-F106),\"достигнуто с улучшением\",IF(E106<=D106*(1+F106),\"достигнуто\",\"не достигнуто\")))","v":"достигнуто"},"+",{"$f":"IF(H106=\"-\",-1,IF(G106=\"достигнуто\",0,IF(G106=\"не достигнуто\",-1,1)))","v":0}]
[]
[null,"Значения обобщенного показателя надежности и качества"]
[null,"ФСК",{"$f":"I103*C131+I104*D131","v":0}]
[null,"ТСО",{"$f":"I103*C132+I105*E132+I106*D132","v":0}]
[]
[null,"Коэффициенты допустимого отклонения показателей надежности и качества"]
[null,"Организация/период","К показателю надежности","К показателю качества"]
[null,"ФСК"]
[null,"Первые три года первого периода регулирования (2010-2012)",0.25,0.15]
[null,"Последующие годы первого периода регулирования (2013-2015)",0.2]
[null,"Последующие годы","Поэтапное (1% в год) от 20% до 15% "]
[null,"ТСО - пилоты 1-2-й очереди (переход на долгосрочное регулирование с 2010 года и ранее)"]
[null,"Первые три года первого периода регулирования",0.3]
[null,"Последующие годы",0.25]
[null,"Прочие ТСО"]
[null,"Первые три года первого периода регулирования",0.35]
[null,"Последующие годы первого периода регулирования",0.3]
[null,"Последующие годы","Поэтапное (1% в год) от 30% до 25% "]
[]
[null,"Переход на долгосрочное регулирование ТСО","до 01.07.2010г. (отчет за 1-3 годы 1 ДПР)"]
[]
[]
[null,"Коэффициенты значимости коэффициентов надежности и качества"]
[null,"Организация","Коэффициент надежности","Коэффициенты качества"]
[null,"ФСК",0.75,{"$f":"1-C131","v":0.25},0]
[null,"ТСО",0.65,0.25,0.1]
[]
[null,"V - Расчет корректировки НВВ по показателям надежности и качества"]
[]
[]
[null,"Коэффициент корректировки"]
[null,"ФСК при представлении достоверных отчетных данных",{"$f":"C109*$C$140","v":0}]
[null,"ТСО при представлении достоверных отчетных данных",{"$f":"C110*$C$140","v":0}]
[null,"Максимальный процент корректрировки на текущий год при представлении достоверных отчетных данных",{"$f":"C146","v":0.02}]
[]
[]
[null,"Максимальные проценты корректировки  при представлении достоверных отчетных данных согласно МУ"]
[null,"на 2011 год",5.0000000000000001E-3]
[null,"на 2012 год",0.01]
[null,"на 2013 год и далее",0.02]
[]
[null,"Справочно:"]
[null,"Коэффициент корректировки в случае непредставления отчетных данных",-0.03]
[null,"Предельный процент отклонения отчетных данных организации от данных Технадзора, ФАС, Фед. Службы по защите прав потребителей, Системного Оператора, при превышении которого, данные признаются недостоверными"]
[null,"на 2011 год",0.2]
[null,"на 2012 год",0.15]
[null,"на 2013 год и далее",0.1]
[null,"При представлении для расчета какого-либо показателя недостоверных отчетных данных, индикатор выполнения по показателю (Кнад и/или Ккач1, Ккач2)  признается равным -1"]

{"sheet":"Форма 1.1.","index":2,"n_rows":10,"n_cols":4,"rows_kept":10,"cut":false,"hidden":false,"merged":[[1,1,1,3]]}
[]
[null,{"$f":"\"Форма 1.1. Журнал учета текущей информации о прекращении передачи\nэлектрической энергии для потребителей услуг сетевой организации за \"& Факт!C$2 & \" год\"","v":"Форма 1.1. Журнал учета текущей информации о прекращении передачи\nэлектрической энергии для потребителей услуг сетевой организации за  год"}]
[]
[null,"Обосновывающие \nданные для расчета","Продолжительность прекращения, час.","Количество точек присоединения потребителей услуг к электрической сети электросетевой организации, шт."]
[null,1,2,3]
[null,null,102,723]
[]
[]
[null,null,"Добавить строку"]
[null," X "]

{"sheet":"Форма 1.2.","index":3,"n_rows":6,"n_cols":4,"rows_kept":6,"cut":false,"hidden":false,"merged":[[1,1,1,3]]}
[]
[null,"Форма 1.2. Расчет показателя средней продолжительности прекращений \nпередачи электрической энергии"]
[]
[null,{"$f":"\"Максимальное за расчетный период \" & Факт!C$2 & \" года число точек присоединения\"","v":"Максимальное за расчетный период  года число точек присоединения"},{"$f":"MAX('Форма 1.1.'!D6:D9)","v":723},"Максимальное значение по гр.3 формы 1.1"]
[null,"Суммарная продолжительность прекращений передачи электрической энергии, час. (Тпр)",{"$f":"SUM('Форма 1.1.'!C6:C9)","v":102},"Сумма по гр.2 формы 1.1"]
[null,"Показатель средней продолжительности \nпрекращений передачи электрической энергии (Пп)",0.28633999999999998]

{"sheet":"Форма 1.9.","index":4,"n_rows":12,"n_cols":5,"rows_kept":12,"cut":false,"hidden":false,"merged":[[1,1,1,4]]}
[]
[null,"Форма 1.9. Данные об экономических и технических характеристиках \nи (или) условиях деятельности территориальных сетевых организаций"]
[]
[null,"№\nп/п","Характеристики и (или) условия \nдеятельности сетевой организации 1","Значение характеристики","Наименование и реквизиты подтверждающих документов \n(в том числе внутренних документов сетевой организации)"]
[null,"1","Протяженность линий электропередачи \nв одноцепном выражении (ЛЭП), км",120.30500000000001,"Свидетельства о регистрации- (72 НМ 584664 от 18.10.13г., 72 НМ 584617 от 18.10.13г.,  72 НМ 474978 от 10.07.13г.,  72 НМ 584593 от 17.10.13г.,  72 НМ 475023 от 08.07.13г.,  72 НМ 584592 от 18.10.13г.,  72 НМ 474987 от 09.07.13г.,). Договор аренды(субаренды)-(ОАО ТТК \"КРОСНО\" №108-Э от 01.08.15г.; Баранчук Ю.А. А-19 от 06.07.16г.;ООО \"УК-Тюменские моторостроители\" А-01/2018 от 14.03.18г.)"]
[null,"1.1","Протяженность кабельных линий электропередачи в одноцепном \nвыражении, км",98.951999999999998,"Свидетельство о госрегистрации 72 НМ 886404 от 10.11.14г,72 НМ 475035 от 08.07.13г,72 НМ 475036 от 08.07.13г,72 НМ 475025 от 08.07.13г,72 НМ 475028 от 08.07.13г,72 НМ 475029 от 08.07.13г,72 НМ 475029 от 08.07.13г,72 НМ 584667 от 21.10.13г,72 НМ 584594 от 18.10.13г,72 НМ 474961 от 10.07.13г,72 НМ 474976 от 10.07.13г,72 НМ 475033 от 08.07.13г,72 НМ 474943 от 10.07.13г,72 НМ 584663 от 18.10.13г,72 НМ 474960 от 10.07.13г,72 НМ 584591 от 18.10.13г,72 НМ 474946 от 10.07.13г,72 НМ 474944 от 10.07.13г,72 НМ 475031 от 08.07.13г,72 НМ 584008 от 13.11.13г,72 НМ 584191 от 08.10.13г,72 НМ 584007 от 13.10.13г,72 НМ 583965 от 13.10.13г,72 НМ 541923 от 15.10.13г,72 НМ 541634 от 20.10.13г,72 НМ 541636 от 20.10.13г,72 НМ 474979 от 10.07.13г,72 НМ 474962 от 10.07.13г,72 НМ 474969 от 10.07.13г,72 НМ 474951 от 11.07.13г,72 НМ 474963 от 10.07.13г,72 НМ 474994 от 09.07.13г,72 НМ 475027 от 08.07.13г,72 НМ 510872 от 12.07.13г,72 НМ 474993 от 09.07.13г,72-72/001-72/001/098/2015-8818/1 от 23.09.15г ,72 НМ 886262 от 19.11.14г,72-72/001-72/001/088/2015-7389/1 от 09.06.15г,72-72/001-72/001/088/2015-9433/1 от 26.06.15г,72-72/001-72/001/088/2015-9436/1 от 26.06.15г,72-72/001-72/001/098/2015-17/1 от 02.07.15г,72-72/001-72/001/098/2015-16/1 от 02.07.15г,72-72/001-72/001/088/2015-9431/1 от 07.07.15г,72-72/001-72/001/098/2015-13/1 от 17.07.15г,72-72/001-72/001/097/2015-2004/2 от 21.07.15г,72-72/001-72/001/098/2015-4194/1 от 07.08.15г,72-72/001-72/001/098/2015-4193/1 от 07.08.15г,72-72/001-72/001/098/2015-4195/1 от 07.08.15г,72-72/001-72/001/098/2015-4196/1 от 07.08.15г,72-72/001-72/001/098/2015-4199/1 от 07.08.15г,72-72/001-72/001/098/2015-4204/1 от 07.08.15г,72-72/001-72/001/098/2015-4372/1 от 10.08.15г,72-72/001-72/001/098/2015-4370/1 от 10.08.15г,72-72/001-72/001/098/2015-4365/1 от 10.08.15г,72-72/001-72/001/098/2015-4373/1 от 10.08.15г,72-72/001-72/001/098/2015-4367/1 от 10.08.15г,72-72/001-72/001/098/2015-4363/1 от 11.08.15г,72-72/001-72/001/117/2015-5161/1 от 30.09.15г,"]
[null,"2","Доля кабельных линий электропередачи \nв одноцепном выражении от общей протяженности линий электропередачи \n(Доля КЛ), %",82]
[null,"3","Максимальной за год число точек \nпоставки, шт.",723]
[null,"4","Число разъединителей и выключателей, шт.",543]
[null,"5","Средняя летняя температура, °C",20]
[null,"6","Номер группы (m) территориальной \nсетевой организации по показателю\nПsaidi","(форма 9.1)","-"]
[null,"7","Номер группы (m) территориальной \nсетевой организации по показателю\nПsaifi","(форма 9.2)","-"]

{"sheet":"Форма 8.1.","index":5,"n_rows":24,"n_cols":29,"rows_kept":24,"cut":false,"hidden":false,"merged":[[22,2,22,4],[3,28,6,28],[4,2,6,2],[4,3,6,3],[4,4,6,4],[4,5,6,5],[4,6,6,6],[4,11,6,11],[4,12,6,12],[3,2,3,10],[3,11,3,23],[3,24,6,24],[5,25,6,25],[5,26,6,26],[5,27,6,27],[1,4,1,26],[4,13,6,13],[4,14,4,22],[4,23,6,23],[5,14,6,14],[5,15,5,17],[5,18,5,21],[5,22,6,22],[4,7,6,7],[4,8,6,8],[4,9,6,9],[4,10,6,10],[3,25,4,27]]}
[]
[null,null,null,null,"Форма 8.1. Журнал учета данных первичной информации по всем \nпрекращениям передачи электрической энергии, произошедшим на объектах сетевой организации"]
[]
[null,null,"Данные о факте прекращения передачи электрической энергии",null,null,null,null,null,null,null,null,"Данные о масштабе прекращения передачи электрической энергии в сетевой организации",null,null,null,null,null,null,null,null,null,null,null,null,"Перечень смежных сетевых организаций, затронутых прекращением передачи электрической энергии","Данные о причинах прекращения передачи электрической энергии и их расследовании",null,null,"Учет в показателях надежности, в т.ч. индикативных показателях надежности (0 - нет, 1 - да)"]
[null,null,"Номер прекращения передачи электрической энергии / Номер итоговой строки","Наименование структурной единицы сетевой организации ","Вид объекта: КЛ, ВЛ, КВЛ, ПС, ТП, РП","Диспетчерское наименование объекта электросетевого хозяйства сетевой организации, в результате отключения которой произошло прекращение передачи электроэнергии потребителям услуг ","Высший класс напряжения отключенного оборудования сетевой организации, кВ","Время и дата начала прекращения передачи электрической энергии (часы, минуты, ГГГГ.ММ.ДД)","Время и дата восстановления режима потребления электрической энергии потребителей услуг (часы, минуты, ГГГГ.ММ.ДД)","Вид прекращения передачи электроэнергии (П, А, В)","Продолжительность прекращения передачи электрической энергии, час","Перечень объектов электросетевого хозяйства, отключение которых привело к прекращению передачи электрической энергии потребителям услуг (ПС, ТП, РП, ВЛ, КЛ)","Перечень потребителей 1-й и 2-й категорий надежности, в отношении которых произошло полное ограничение режима потребления электрической энергии","Перечень потребителей 1-й и 2-й категорий надежности, в отношении которых произошло частичное ограничение режима потребления электрической энергии","Количество точек поставки потребителей услуг сетевой организации, в отношении которых произошел перерыв электроснабжения, шт., в том числе:",null,null,null,null,null,null,null,null,"Суммарный объем фактической нагрузки (мощности) на присоединениях потребителей услуг, по которым произошло прекращение передачи электрической энергии на момент возникновения такого события, кВт"]
[null,null,null,null,null,null,null,null,null,null,null,null,null,null,"ВСЕГО","в разделении категорий надежности потребителей электрической энергии",null,null,"в разделении уровней напряжения ЭПУ потребителя электрической энергии",null,null,null,"Смежные сетевые организации и производители электрической энергии",null,null,"Номер и дата акта расследования технологического нарушения, записи в оперативном журнале","Код организационной причины аварии","Код технической причины повреждения оборудования"]
[null,null,null,null,null,null,null,null,null,null,null,null,null,null,null,"1-я категория надежности","2-я категория надежности","3-я категория надежности","ВН (110 кВ и выше)","СН1 (35 кВ)","СН2 (6-20 кВ)","НН (0,22-1 кВ)"]
[null,null,1,2,3,4,5,6,7,8,9,10,11,12,13,14,15,16,17,18,19,20,21,22,23,24,25,26,27]
[null,null,1,"ООО \"Агентство Интеллект-Сервис\"","ВЛ-10 Б-Тараскуль отпайка на ТП-16","ВЛ-10 Б-Тараскуль отпайка на ТП-16 АО \"Тюменьэнерго\" ТРС",10," 0:00,2019.02.06"," 21:00,2019.02.06"," В",21,"ВЛ-10 Б-Тараскуль отпайка на ТП-16",null,null,2,null,null,3,null,null,1,2,1,500,1,"№1, 2019.02.06","3.4.9.1","1900-01-04T05:02:24",1]
[null,null,2,"ООО \"Агентство Интеллект-Сервис\"","РП-90 от него запитан ТП-26","РП-90  1С-10, 2С-10 ПАО \"СУЭНКО\"",10," 17:38,2019.04.10"," 19:16,2019.04.10","В",1.63,"РП-90 с фидерами 10кВ на ТП-26",null,null,2,null,2,null,null,null," ",2,null,37,1,"№2, 2019.04.10","3.4.9.1","1900-01-04T05:02:24",1]
[null,null,3,"ООО \"Агентство Интеллект-Сервис\"","ПС 110кВ Сибжилстрой фидер ВЛ-10 ДОК с отпайкой на ТП-6 от ТП-6 ТП-10/0,4кВ Гофрапак","ПС 110кВ Сибжилстрой фидер ВЛ-10 ДОК с отпайкой на ТП-6. От ТП-6 отпайка на ТП-10/0,4кВ Гофрапак (ООО \"Гофрапак Тюмень\")",10," 16:58,2019.08.11"," 19:28,2019.08.11","В",2.5,"ВЛ-10 Док с отпайкой на ТП-6, от ТП-6 подключен ТП-10/0,4кВ Гофрапак"," ",null,8,null,null,8,null,null,1,7,null,200,2,"№3, 2019.08.11","3.4.9.1","1900-01-04T05:02:24",1]
[null," X ",4,"ООО \"Агентство Интеллект-Сервис\"","ПАО \"Фортум\" ТТЭЦ-1 фидер КВЛ-10 Торфосклад","ООО \"Агентство Интеллект-Сервис\" КВЛ-10 Торфосклад",10," 18:48,2019.09.13"," 20:55,2019.09.13","В",2.1,"КВЛ-10 Тофосклад отпайка на ТП-28",null,null,4,null,null,4,null,null,3,1,1,177,2,"№4, 2019.09.13","3.4.12.2",4.1399999999999997,1]
[null," X ",5,"ООО \"Агентство Интеллект-Сервис\"","ПАО \"Фортум\" ТТЭЦ-1  КВЛ-110 ТТЭЦ-1-Граничная, ВЛ-110 ТТЭЦ-1-Войновка","АО \"Тюменьэнерго\" ТРС    КВЛ-110 ТТЭЦ-1-Граничная, ВЛ-110 ТТЭЦ-1-Войновка",110," 17:39,2019.09.19"," 02:30,2019.09.20","В",8.9,"КВЛ-110 ТТЭЦ-1-Граничная, ВЛ-110 ТТЭЦ-1-Войновка, ПС 110кВ КСК",null,null,22,null,20," ",2,null,20,null,1,2835,4,"№5, 2019.09.19","3.4.12.2",4.1399999999999997,1]
[null," X ",6,"ООО \"Агентство Интеллект-Сервис\"","ПАО \"Фортум\" ТТЭЦ-1 фидер КВЛ-10 Торфосклад","ООО \"Агентство Интеллект-Сервис\" КВЛ-10 Торфосклад отпайка ВЛ-10 на ТП 10/0,4кВ ИП \"Фёдоров\"",10," 17:39,2019.09.19"," 17:45,2019.09.20","В",24.1," КВЛ-10 Торфосклад отпайка ВЛ-10 на ТП 10/0,4кВ ИП \"Фёдоров\"",null,null,4,null,null,4,null,null,3,1,1,372,2,"№6, 2019.09.19","3.4.12.2",4.1399999999999997,1]
[null," X ",7,"ООО \"Агентство Интеллект-Сервис\"","ПАО \"СУЭНКО\" РП-112","ПАО \"СУЭНКО\" от РП-112 электроснабжение ТП-66 ",10," 15:13,2019.09.26"," 16:53,2019.09.26","В",0.6,"ТП-66",null,null,1,null,1,null,null,null,null,1,null,144,1,"№7, 2019.09.26","3.4.9.1","1900-01-04T05:02:24",1]
[null," X ",8,"ООО \"Агентство Интеллект-Сервис\"","ГПП 110кВ моторный з-д, ЗРУ-10 яч.№38 фидер РП-5","КЛ-10 РП-5 ПАО \"ТМ\"",10," 22:14,2019.09.27"," 00:58,2019.09.28","В",2.8,"РП-5,ТП-18,ТП-22",null,null,21,null,null,21,null,null,1,20,1,500,1,"№8, 2019.09.27","3.4.9.3",4.12,1]
[null," X ",9,"ООО \"Агентство Интеллект-Сервис\"","ГПП 110кВ моторный з-д, ЗРУ-10 яч.№44 фидер ТП-70","КЛ-10 ТП-70 ПАО \"ТМ\"",10," 08:00,2019.09.28"," 13:10,2019.09.28","В",4.8,"ТП-70",null,null,2,null,null,null,null,null,null,2,1,100,1,"№9, 2019.09.28","3.4.9.3",4.12,1]
[null," X ",10,"ООО \"Агентство Интеллект-Сервис\"","ГПП 110кВ моторный з-д, ЗРУ-10 яч.№22 фидер РП-3","КВЛ-10 ТП-36 ООО \"Агентство Интеллект-Сервис\"",10," 08:20,2019.09.29"," 11:00,2019.09.29","В",1.8,"РП-3, КВЛ-10 ТП-36 с отпайкой на ТП-32",null,null,10,null,null,11,null,null,2,9,1,500,1,"№10, 2019.09.29","3.4.9.3",4.12,1]
[null," X ",11,"ООО \"Агентство Интеллект-Сервис\"","ВЛ-10 Б-Тараскуль отпайка на ТП-16","ВЛ-10 Б-Тараскуль отпайка на ТП-16 АО \"Тюменьэнерго\" ТРС",10," 23:57,2019.11.11"," 13:44,2019.11.12","В",13.2,"ВЛ-10 Б-Тараскуль отпайка на ТП-16",null,null,2,null,null,3,null,null,1,2,1,19,1,"№11, 2019.11.11","3.4.9.3",4.13,1]
[null," X ",12,"ООО \"Агентство Интеллект-Сервис\"","ГПП 110кВ моторный з-д, ЗРУ-10 яч.№22 фидер РП-3","ТП-46 ПАО \"ТМ\"",10," 00:55,2019.11.27"," 01:55,2019.11.27","В",1,"РП-3, ТП-45",null,null,15,null,null,15,null,null,4,11,1,390,1,"№12, 2019.11.27","3.4.1; 3.4.9.3",4.1100000000000003,1]
[null," X ",13,"ООО \"Агентство Интеллект-Сервис\"","ПАО \"Фортум\" ТТЭЦ-1 фидер КВЛ-10 Торфосклад","ООО \"Агентство Интеллект-Сервис\" КВЛ-10 Торфосклад",10," 12:12,2019.12.10"," 22:52,2019.12.10","В",10.6,"КВЛ-10 Тофосклад перемычка КЛ-10 от оп.№45 на оп.№46",null,null,4,null,null,4,null,null,3,1,1,600,2,"№13, 2019.12.10","3.4.13.4","1900-01-04T02:52:48",1]
[null," X ",14,"ООО \"Агентство Интеллект-Сервис\"","ПС 110кВ Сибжилстрой фидер ВЛ-10 ДОК с отпайкой на ТП-6 от ТП-6 ТП-10/0,4кВ Гофрапак","ПС 110кВ Сибжилстрой фидер ВЛ-10 ДОК с отпайкой на ТП-6.  ",10," 04:35,2019.12.19"," 11:35,2019.12.19","В",7,"ВЛ-10 Док с отпайкой на ТП-6",null,null,8,null,null,8,null,null,1,7,1,300,2,"№14, 2019.12.19","3.4.9.1","1900-01-04T02:52:48",1]
[null,null,"Добавить строку"]
[null," X "]

{"sheet":"Форма 8.3.","index":6,"n_rows":13,"n_cols":5,"rows_kept":13,"cut":false,"hidden":false,"merged":[[1,1,1,4]]}
[]
[null,"Форма 8.3. Расчет индикативного показателя уровня надежности оказываемых услуг для территориальных сетевых организаций и организаций по управлению единой национальной (общероссийской) электрической сетью"]
[]
[null,"№\nп/п","Наименование составляющей показателя","Метод определения"]
[null,1,"Максимальное за расчетный период регулирования число точек поставки сетевой организации, шт., в том числе\nв разбивке по уровням напряжения:",723,"В соответствии с заключенными договорами \nпо передаче электрической энергии"]
[null,"1.1","ВН (110 кВ и выше), шт.",80,"В соответствии с заключенными договорами \nпо передаче электрической энергии"]
[null,"1.2","СН-1 (35 кВ), шт.",0,"В соответствии с заключенными договорами \nпо передаче электрической энергии"]
[null,"1.3","СН-2 (6 - 20 кВ), шт.",161,"В соответствии с заключенными договорами \nпо передаче электрической энергии"]
[null,"1.4","НН (до 1 кВ), шт.",482,"В соответствии с заключенными договорами \nпо передаче электрической энергии"]
[null,"2","Средняя продолжительность прекращения передачи электрической энергии на точку поставки (Пsaidi), час.",{"$f":"IF(ISERR(SUMPRODUCT((Столбец9*Столбец13)*(Столбец8=\"В\")*(Столбец27=1))/D$5),0,SUMPRODUCT((Столбец9*Столбец13)*(Столбец8=\"В\")*(Столбец27=1))/D$5)","v":0},"сумма произведений по столбцу 9 и столбцу 13 \nФормы 8.1, деленная на значение пункта 1 \nФормы 8.3\n((∑ столбец 9 * столбец 13) / пункт 1 Формы 8.3)\nПри этом учитываются только те события, по которым значения в столбце 8 равны \"В\", а в столбце 27 равны 1"]
[null,"3","Средняя частота прекращений передачи электрической энергии на точку поставки (Пsaifi), шт.",{"$f":"IF(ISERR(SUMIFS(Столбец13,Столбец8,\"В\",Столбец27,1)/D$5),0,SUMIFS(Столбец13,Столбец8,\"В\",Столбец27,1)/D$5)","v":0},"сумма по столбцу 13 Формы 8.1 и деленная на значение пункта 1 Формы 8.3\n(∑ столбец 13 Формы 8.1 / пункт 1 Формы 8.3)\nПри этом учитываются только те события, по которым значения в столбце 8 равны \"В\", а в столбце 27 равны 1"]
[null,"4","Средняя продолжительность прекращения передачи электрической энергии при проведении ремонтных работ (Пsaidi), час.",{"$f":"IF(ISERR(SUMPRODUCT((Столбец9*Столбец13)*(Столбец8=\"П\"))/D$5),0,SUMPRODUCT((Столбец9*Столбец13)*(Столбец8=\"П\"))/D$5)","v":0},"сумма произведений по столбцу 9 и столбцу 13 Формы 8.1, деленная на значение пункта 1\nФормы 8.3\n((∑ столбец 9 * столбец 13) / пункт 1 Формы 8.3)\nПри этом учитываются только те события, по которым значения в столбце 8 равны \"П\""]
[null,"5","Средняя частота прекращений передачи электрической энергии при проведении ремонтных работ (Пsaifi), шт.",{"$f":"IF(ISERR(SUMIFS(Столбец13,Столбец8,\"П\")/D$5),0,SUMIFS(Столбец13,Столбец8,\"П\")/D$5)","v":0},"сумма по столбцу 13 Формы 8.1 и деленная\nна значение пункта 1 Формы 8.3\n(∑ столбец 13 Формы 8.1 / пункт 1 Формы 8.3)\nПри этом учитываются только те события, по которым значения в столбце 8 равны \"П\""]

{"sheet":"TEHSHEET","index":7,"n_rows":39,"n_cols":8,"rows_kept":39,"cut":false,"hidden":true,"merged":[]}
[]
[]
[]
[null,"Столбец1",null,null,"Столбец1",null,null,"Столбец1"]
[null,"АО \"Распределительная сетевая компания Ямала\"",null,null,"до 01.07.2010г. (отчет за 1-3 годы 1 ДПР)",null,null,"Тюменская область"]
[null,"АО \"Черногорэнерго\"",null,null,"до 01.07.2010г. (отчет за последующие годы 1 ДПР)",null,null,"Ханты-Мансийский автономный округ - Югра"]
[null,"АО \"Вынгапуровский тепловодоканал\"\"",null,null,"после 01.07.2010г. (отчет за 1-3 годы 1 ДПР)",null,null,"Ямало-Ненецкий автономный округ"]
[null,"АО \"Губкинские городские электрические сети\"",null,null,"после 01.07.2010г. (отчет за последующие годы 1 ДПР)"]
[null,"АО \"Нижневартовское нефтегазодобывающее предприятие\""]
[null,"АО \"Уренгойгорэлектросеть\""]
[null,"АО \"Энерго-Газ-Ноябрьск\""]
[null,"АО \"Ямальская железнодорожная компания\""]
[null,"МП \"Ханты-Мансийские городские электрические сети\" Муниципального образования город Ханты-Мансийск"]
[null,"МУП \"Надымские городские электрические сети\""]
[null,"МУП \"Сургутские районные электрические сети\" муниципального образования Сургутский район"]
[null,"ОАО \"Варьеганэнергонефть\""]
[null,"ОАО \"Аэропорт Сургут\""]
[null,"ООО \"Агентство Интеллект-Сервис\""]
[null,"ООО \"Альтера\""]
[null,"ООО \"Дорстрой\""]
[null,"ООО \"ДСК-Энерго\""]
[null,"ООО \"МегионЭнергоНефть\""]
[null,"ООО \"РемЭнергоСтройСервис\""]
[null,"ООО \"Тобольскпромэнергосеть\""]
[null,"ООО \"Транзит-Электро-Тюмень\""]
[null,"ООО \"Тюменская электросетевая компания\""]
[null,"ООО \"Элтранс\""]
[null,"ООО \"Газпром трансгаз Сургут\""]
[null,"ООО \"Газпром энерго\""]
[null,"ООО \"Газпромнефть-Хантос\""]
[null,"ООО \"Луч-Электро\""]
[null,"ООО \"Ноябрьскэнергонефть\""]
[null,"ООО \"РН-Юганскнефтегаз\""]
[null,"ООО \"ЭЛЕК\""]
[null,"ООО СК \"Восток\""]
[null,"ПАО \"Сургутнефтегаз\""]
[null,"Филиал \"Уральский\" АО \"Оборонэнерго\""]
[null,"Филиал ОАО \"РЖД\" Трансэнерго Свердловская дирекция по энергообеспечению (по сетям Ишимской, Егоршинской, Серовской, Тюменской дистанций электроснабжения)"]
[null,"Филиал ОАО \"РЖД\" Трансэнерго Свердловская дирекция по энергообеспечению (по сетям Сургутской дистанции электроснабжения)"]